Cogmind - Beta 16.1 @@@ ROGUE MODE // 2026.03.20 @ 13:59:46 Player: beans Result: Destroyed by 5P-M2S(R) with Subdweller Laser Performance ------------- Evolutions (0) 0 Regions Visited (3) 600 Robots Destroyed (15) 75 Value Destroyed (295) 295 Prototype IDs (0) 0 Alien Tech Used (0) 0 Bonus (0) 0 TOTAL SCORE: 970 Bonus ------- None Cogmind --------- Core Integrity 0/250 Matter 300/300 Energy 100/100 System Corruption 0% Temperature Cool (6) Movement Core (50) Location -10/Subcaves Parts ------- > --- POWER (1) -------- (None) > --- PROPULSION (2) --- (None) > --- UTILITY (2) ------ Signal Interpreter Makeshift System Shield > --- WEAPON (2) ------- Makeshift Spear > --- INVENTORY (5) ---- Experimental Sensor Array Peak State ------------ > --- POWER ------------ Light Ion Engine > --- PROPULSION ------- Light Treads Light Treads > --- UTILITY ---------- Improved Heat Sink High-capacity Matter Pod > --- WEAPON ----------- Assault Rifle Light Assault Rifle > --- INVENTORY -------- Experimental Sensor Array Light Assault Rifle [Rating: 10] Favorites ----------- Power Light Ion Engine Engine Light Ion Engine Propulsion Light Treads Treads Light Treads Utility Improved Heat Sink Device Improved Heat Sink Storage High-capacity Matter Pod Processor Signal Interpreter Hackware Makeshift System Shield Weapon Assault Rifle Ballistic Gun Assault Rifle Piercing Weapon Makeshift Spear Build | -11 -10 -10 -10 ------- Run | Yrd Mat Min Sub Slots Evolved . | . . . . Power . | . . . . Propulsion . | . . . . Utility . | . . . . Weapon . | . . . . Parts Attached 12 | 5 1 2 4 Power 1 | 1 . . . Engine 1 | 1 . . . Core . | . . . . Reactor . | . . . . Propulsion 2 | 2 . . . Treads 2 | 2 . . . Leg . | . . . . Wheel . | . . . . Hover . | . . . . Flight . | . . . . Utility 4 | . 1 1 2 Device 1 | . . 1 . Storage 1 | . 1 . . Processor 1 | . . . 1 Hackware 1 | . . . 1 Protection . | . . . . Artifact . | . . . . Weapon 5 | 2 . 1 2 Energy Gun . | . . . . Energy Cannon . | . . . . Ballistic Gun 4 | 2 . 1 1 Ballistic Cannon . | . . . . Launcher . | . . . . Special Weapon . | . . . . Impact Weapon . | . . . . Slashing Weapon . | . . . . Piercing Weapon 1 | . . . 1 Special Melee Weapon . | . . . . Unidentified Prototypes . | . . . . Parts Lost 6 | . . 1 5 Power 1 | . . . 1 Propulsion 2 | . . . 2 Utility . | . . . . Weapon 3 | . . 1 2 Highest Loss Streak 5 | . . 1 5 To Critical Strikes . | . . . . Average Backups 1 | . . . 2 Power . | . . . . Propulsion . | . . . . Utility 1 | . . . 2 Weapon . | . . . . Tool/Special . | . . . . Unused Backups 1 | . . . 1 Power . | . . . . Propulsion . | . . . . Utility 1 | . . . 1 Weapon . | . . . . Tool/Special . | . . . . Average Slot Usage (%) 79 | . 80 98 47 Engine 10 | . 14 14 2 Treads 20 | . 28 28 5 Device 10 | . . 12 9 Storage 10 | . 9 14 4 Processor 1 | . . . 4 Hackware 1 | . . . 3 Ballistic Gun 22 | . 28 27 12 Piercing Weapon 1 | . . . 4 Peak Build Rating 10 | 5 6 10 10 Average Rating 7 | 3 5 8 7 On Entrance 5 | . 5 6 10 Avg Prop Armor Cover (%) . | . . . . Naked Turns 1 | . . . 1 Heaviest Build 12 | 7 11 12 11 Greatest Support 40 | 40 40 40 40 Greatest Overweight (x) 1 | . . . 1 Average Overweight (x) . | . . . . Largest Inventory Capacity 5 | 5 5 5 5 Average Capacity 5 | 5 5 5 5 Most Carried 5 | 4 1 3 5 Average Carried 1 | . . . 2 Final Capacity 5 | 5 5 5 5 Final Carried 3 | . . 3 1 Class Distribution -------------------- 100% | Mutant Dominant Class ---------------- Mutant | -10/Materials Mutant | -10/Mines Mutant | -10/Subcaves Resources | -11 -10 -10 -10 ----------- Run | Yrd Mat Min Sub Matter Collected 681 | 218 . 344 119 Remotely . | . . . . Salvage Created 369 | 45 . 207 117 Parts 25 | 4 . 16 5 Haulers Intercepted . | . . . . Recyclers Shooed . | . . . . Parts Field Recycled . | . . . . Retrieved Matter . | . . . . Parts Self-Destructed . | . . . . Prevented . | . . . . Parts Restored . | . . . . Kills | -11 -10 -10 -10 ------- Run | Yrd Mat Min Sub Combat Hostiles Destroyed 13 | . . 10 3 Melee 1 | . . . 1 Guns 12 | . . 10 2 Classes Destroyed 4 | 1 . 2 1 Tunneler 2 | 2 . . . Swarmer 8 | . . 8 . Grunt 2 | . . 2 . Subdweller 3 | . . . 3 Best Kill Streak 3 | 2 . 3 2 Combat Bots Only 3 | . . 3 2 Max Kills in Single Turn 2 | 2 . 2 1 Gunslinging 1 | . . 1 . Exploded . | . . . . Melee 1 | . . . 1 Uniques/NPCs Destroyed . | . . . . Combat | -11 -10 -10 -10 -------- Run | Yrd Mat Min Sub Hostile Shots Fired 104 | . . 71 33 Missed 29 | . . 22 7 Hits 75 | . . 49 26 Projectile 75 | . . 49 26 Critical Strikes 4 | . . 2 2 Damage Taken 1007 | . . 484 523 Core 261 | . . 81 180 Absorbed by Shields . | . . . . Core Remaining (%) 100 | 100 . . . Volleys Fired 44 | 1 . 28 15 Largest 2 | 2 . 2 2 Hottest 40 | 40 . 40 40 Shots Fired 81 | 2 . 55 24 Gun 81 | 2 . 55 24 Cannon . | . . . . Launcher . | . . . . Special . | . . . . Kinetic 81 | 2 . 55 24 Thermal . | . . . . Explosive . | . . . . Electromagnetic . | . . . . Robot Hit Streak 21 | 1 . 12 21 Robot Miss Streak 4 | 1 . 4 1 Penetration Max . | . . . . Secondary Targets 5 | . . 5 . Max Gunslinging Chain 1 | . . 1 . Shots Hit Robots 66 | 1 . 35 30 Core Hits 25 | 2 . 14 9 Critical Kills . | . . . . Critical Parts Destroyed . | . . . . Critical Strikes . | . . . . Melee Attacks 10 | . . . 10 Impact . | . . . . Slashing . | . . . . Piercing 10 | . . . 10 Sneak Attacks 1 | . . . 1 Combat Hostiles 1 | . . . 1 Follow-up Attacks . | . . . . Damage Inflicted 872 | 25 . 451 396 Guns 673 | 25 . 451 197 Cannons . | . . . . Explosions . | . . . . Melee 199 | . . . 199 Ramming . | . . . . Kinetic 673 | 25 . 451 197 Thermal . | . . . . Explosive . | . . . . Electromagnetic . | . . . . Impact . | . . . . Slashing . | . . . . Piercing 199 | . . . 199 Highest Corruption . | . . . . Average Corruption . | . . . . Corruption Purged . | . . . . Corruption Blocked . | . . . . Overload Shots . | . . . . Overflow Damage . | . . . . Projectiles . | . . . . Explosions . | . . . . Melee . | . . . . Knockbacks . | . . . . Impact . | . . . . Kinetic . | . . . . Secondary . | . . . . Self-Inflicted Damage . | . . . . Shots . | . . . . Rammed . | . . . . Targets Rammed . | . . . . Kicked . | . . . . Crushed . | . . . . Highest Temperature 26 | . . 26 . Average Temperature 15 | . . 15 . Received Heat Transfer 264 | . . 114 150 Siege Activations . | . . . . Martial Activations . | . . . . Shielding Activations . | . . . . Robots Disrupted . | . . . . Combat Hostiles . | . . . . Robots Corrupted . | . . . . Combat Hostiles . | . . . . Parts Fried . | . . . . Impact Corruptions . | . . . . Robots Melted . | . . . . Combat Hostiles . | . . . . Parts Melted . | . . . . Heat Transferred . | . . . . Parts Sabotaged . | . . . . Parts Stolen . | . . . . Parts Stripped . | . . . . Power Chain Reactions . | . . . . Alert | -11 -10 -10 -10 ------- Run | Yrd Mat Min Sub Maximum Alert Level . | . . . . Low Security (%) 100 | 100 100 100 . Level 1 . | . . . . Level 2 . | . . . . Level 3 . | . . . . Level 4 . | . . . . Level 5 . | . . . . High Security . | . . . . Max Security . | . . . . Peak Influence 67 | 10 . 67 . Initial . | . . . . Average 18 | 1 . 23 . Influence Increases 265 | 10 . 255 . Destroy 0b10 Robot/C 200 | . . 200 . Destroy 0b10 Robot/NC 10 | 10 . . . Destroy Leader 40 | . . 40 . Lose Combat Pursuer 15 | . . 15 . Influence Decreases 265 | 10 . 236 19 Entered New Map 11 | . . . 11 Time Decay 244 | 10 . 226 8 Lost Part 10 | . . 10 . Squads Dispatched . | . . . . Investigation . | . . . . Extermination . | . . . . Reinforcement . | . . . . Assault . | . . . . Garrison . | . . . . Intercept . | . . . . Searches Triggered . | . . . . Construction Impeded . | . . . . Haulers Reinforced . | . . . . Active Scanning Responses . | . . . . Cargo Convoy Interrupts . | . . . . Stealth | -11 -10 -10 -10 --------- Run | Yrd Mat Min Sub Distress Signals . | . . . . Communications Jammed . | . . . . Distress Signals . | . . . . Times Spotted 17 | . . 11 6 Peak Tracking Total 3 | . . 3 2 Tactical Retreats 2 | . . 1 1 Traps | -11 -10 -10 -10 ------- Run | Yrd Mat Min Sub Traps Triggered . | . . . . Indirectly . | . . . . Trap Hack Attempts . | . . . . Triggered . | . . . . Disarmed . | . . . . Reprogrammed . | . . . . Reused . | . . . . Traps Extracted . | . . . . Installed . | . . . . Triggered . | . . . . Machines | -11 -10 -10 -10 ---------- Run | Yrd Mat Min Sub Machines Disabled . | . . . . Max in Single Turn . | . . . . Machines Repaired . | . . . . Machines Dismantled . | . . . . Machines Sabotaged . | . . . . Overloaded Fab Kills . | . . . . Hacking | -11 -10 -10 -10 --------- Run | Yrd Mat Min Sub Machines Accessed . | . . . . Terminals . | . . . . Fabricators . | . . . . Repair Stations . | . . . . Recycling Units . | . . . . Scanalyzers . | . . . . Garrison Access . | . . . . Total Hacks . | . . . . Successful . | . . . . Failed . | . . . . Catastrophic . | . . . . Database Lockouts . | . . . . Manual . | . . . . Terminals . | . . . . Fabricators . | . . . . Repair Stations . | . . . . Recycling Units . | . . . . Scanalyzers . | . . . . Garrison Access . | . . . . Terminal Hacks . | . . . . Fabricator Hacks . | . . . . Repair Station Hacks . | . . . . Recycling Unit Hacks . | . . . . Scanalyzer . | . . . . Garrison Access Hacks . | . . . . Unauthorized Hacks . | . . . . Terminals . | . . . . Fabricators . | . . . . Repair Stations . | . . . . Recycling Units . | . . . . Scanalyzers . | . . . . Garrison Access . | . . . . Data Cores Recovered . | . . . . Used . | . . . . Hacking Detections . | . . . . Full Trace Events . | . . . . Feedback Events . | . . . . Feedback Blocked . | . . . . Robot Schematics Acquired . | . . . . Robots Built . | . . . . Authchips . | . . . . Time . | . . . . Total Robot Build Rating . | . . . . Part Schematics Acquired . | . . . . Parts Built . | . . . . Authchips . | . . . . Time . | . . . . Total Part Build Rating . | . . . . Part Studies Acquired . | . . . . Parts Repaired . | . . . . Time . | . . . . Parts Recycled . | . . . . Recycled Matter . | . . . . Retrieved Matter . | . . . . Retrieved Components . | . . . . Parts Scanalyzed . | . . . . Part Schematics Acquired . | . . . . Parts Damaged . | . . . . Bothacking | -11 -10 -10 -10 ------------ Run | Yrd Mat Min Sub Used RIF Installer . | . . . . Robots Hacked . | . . . . Non-combat . | . . . . Combat . | . . . . Robot Hacks Applied . | . . . . Relay Couplers Released . | . . . . Fabnet Peak Effective % . | . . . . Robots Rewired . | . . . . Allies Hacked . | . . . . Hacks Repelled . | . . . . Allies | -11 -10 -10 -10 -------- Run | Yrd Mat Min Sub Total Allies . | . . . . Largest Group . | . . . . Highest-Rated Group . | . . . . Highest-Rated Ally . | . . . . Total Orders . | . . . . Ally Attacks . | . . . . Total Damage . | . . . . Kills . | . . . . Allies Corrupted . | . . . . Allies Melted . | . . . . Intel | -11 -10 -10 -10 ------- Run | Yrd Mat Min Sub Active Infowar (turns) . | . . . . Robot Analysis Total . | . . . . Derelict Logs Recovered 3 | . . 1 2 Drone Launches . | . . . . Drone Recoveries . | . . . . Exploration | -11 -10 -10 -10 ------------- Run | Yrd Mat Min Sub Turns Passed 1169 | 60 119 622 368 Spaces Moved 905 | 42 74 334 455 Core 438 | 17 . . 421 Treads 467 | 25 74 334 34 Legs . | . . . . Wheels . | . . . . Hover . | . . . . Flight . | . . . . Fastest Speed 50 | 50 160 160 50 Average Speed 107 | 115 160 160 60 Slowest Speed 160 | 160 160 160 160 Overloaded Moves . | . . . . Propulsion Burnouts . | . . . . Robots Hopped . | . . . . Potential Cave-ins . | . . . . Cave-ins Triggered . | . . . . Exploration Rate (%) 32 | 3 16 87 25 Regions Visited 3 Branch Regions 2 Pre-discovered Areas 3 | . . 1 2 Known Exits Taken . | . . . . Unknown Exits Taken 3 | 1 1 1 . Scrap Searched 9 | . . 3 6 Spaces Dug . | . . . . Terrain Destroyed . | . . . . Melee . | . . . . Projectile . | . . . . AOE . | . . . . Terrain Rammed . | . . . . Walls Destroyed . | . . . . Machines Disabled . | . . . . Actions | -11 -10 -10 -10 --------- Run | Yrd Mat Min Sub Total 1017 | 52 75 368 522 Wait 32 | . . . 32 Move 902 | 41 73 333 455 Hop . | . . . . Pick Up 13 | 5 1 5 2 Fast Attach . | . . . . Attach 12 | 5 1 2 4 Detach 1 | . . . 1 Swap . | . . . . Drop 3 | . . . 3 Fire 44 | 1 . 28 15 Melee 10 | . . . 10 Ram . | . . . . Kick . | . . . . Crush . | . . . . Escape Stasis . | . . . . Rewire . | . . . . Trap . | . . . . Miscellaneous . | . . . . Route ------- -11/Scrapyard -10/Materials -10/Mines -10/Subcaves (discovered 1 exit: [*Mat]) History --------- Turn | Location | Event 5 | -11/Scrapyard | Discovered new exit (range 16) 61 | -11/Scrapyard | Entered Materials 161 | -10/Materials | Discovered new exit (range 13) 180 | -10/Materials | Entered Mines 293 | -10/Mines | Learned location of Storage (-8) 307 | -10/Mines | Build established: Mutant 488 | -10/Mines | Found a damaged Exp. Sensor Array with a note attached 491 | -10/Mines | Found Prototype Device 778 | -10/Mines | Discovered new exit (range 15) 802 | -10/Mines | Entered Subcaves 815 | -10/Subcaves | Learned location of Mines (-10) 841 | -10/Subcaves | Learned location of Zion (-6) 874 | -10/Subcaves | Core integrity fell below 50% 916 | -10/Subcaves | Lost 5 parts (1p2n2w) 961 | -10/Subcaves | Shifting Twisted Machinery released Mak. System Shield 961 | -10/Subcaves | Shifting Twisted Machinery released Sub. Laser 971 | -10/Subcaves | Discovered new exit (range 15) 1066 | -10/Subcaves | Visited 4L-MR0's lab 1164 | -10/Subcaves | Core integrity fell below 20% 1170 | -10/Subcaves | Destroyed by 5P-M2S(R) with Subdweller Laser Last Messages --------------- Found Piercing Trap. Found 61 Matter. Searching scrap... Found Mak. Light Armor Plating. Found 60 Matter. Searching scrap... Found Battle Rifle. Found 58 Matter. Dropped Imp. Heat Sink. Dropped Lgt. Assault Rifle. Acquired 10 matter. 4L-MR0: "What, already? Ugh, fine! Just take it and go! I only just finished this one... Can't you folks let me experiment with them a little longer before you take them away? Dropped Hcp. Matter Pod. Extracted 20 matter. Subatomizers dissect the Sub. Power Source. Sneak attack on MT-KKD(R). MT-KKD(R) destroyed. Map ----- +----------------------------------------------------+ | ?????????????????????????????????????????????????? | | ?????????????????????????????????????????????????? | | ?????????????????????????????????????????????????? | | ?????????????????????????????????????????????????? | | ?????????????????????????????????????????????????? | | ?????????????????????????????????????????????????? | | ?????????????????????????????????????????????????? | | ?????????????????????????????????????????????????? | | ?????????????????????????????????????????????????? | | ?????????????????????????????????????????????????? | | ?????????????????????????????????????????????????? | | ????????????????????????????????????#######??????? | | ????????????????????????????????????#! #% #??????? | | ????????????????????????????????????#% [ #??????? | | ????????????????????????????????????### "##??????? | | ????????#####???????????????????####?#% ###??????? | | ???????## #??????????????????## ####&# #####??? | | ??????## #?????????????????## " " ## ##?? | | ??????# #????????????????## # < ##? | | ?????## #????????????????# ## | | ????## ##?????????####??# | | ??### ########### #??#" | | #?# # # #??#" # | | ### " #### " ## | | ## # # #%& #" ### | | ##" # # ## ## @R " "" # #?# #### | | "" # ###" = ## #?###?## | | " "" ### # ##### #?????# | | """"## #?######???## #?????# | | #" ## ###"##### ##???????????####?????## | | ## ### #?###??# #??????????????????????### | | "# ### ####??????## #????????????????????????# | | "## ## #??????????####????????????????????????? | | "## ## #######?????????????????????????????????? | | ### # # # ####?##???????????????????????????? | | ## ## ##??????????????????????????? | | ?## #??????????????????????????? | | ??# # ## #??????????????????????????? | | ??## ####### ## #???????????????????????????? | | ???# ??????# # #????????????????????????????? | | ???# ?????## ! *##???????????????????????????? | | ??# ?##### # | ##??????????????????????????? | | ??## ## # # ###[ #??????????????????????????? | | ???# ### #??????????????????????????? | | ??# ####??????????????????????????? | | ??### # # # ##?????????????????????????????? | | ????####?### ###??????????????????????????????? | | ???????????# ##???????????????????????????????? | | ????###????# #???????????????????????????????? | | ???## ###?# #???????????????????????????????? | +----------------------------------------------------+ Best States ------------- Heat Dissipation 39 Energy Generation 10 Energy Capacity 125 Matter Stores 497 Matter Capacity 500 Sight Range 16 Terrain Scan Density 10 Evasion (%) 50 Recoil Reduction 2 Defensive Hacking 11 Item Schematics ----------------- None Robot Schematics ------------------ None Fabricated ------------ Nothing Repaired ---------- Nothing Studied --------- None Alien Tech Used ----------------- None Achievements -------------- None Challenges ------------ None Game ------ Seed SalvageHardcellMaterializer Manual? 0 Play Time 00:08:51 Cumulative 249.5 hours Start 2026.03.20 @ 13:54:06 End 2026.03.20 @ 13:59:46 Sessions 1 Manual Loads 0 Difficulty Rogue Special Mode None Game No. 677 Rogue 675 Adventurer 2 Explorer 0 Win Type - Total 0 Types 0/0/0/0/0/0/0/0/0/0 Lore% 66 Gallery% 62 Achievement% 42 Wizard Run 0 Options --------- Layout 1 ASCII 0 Keyboard 0 Movement Mouse Keybinds 0 Fullscreen 1 Font 24/Smallcaps Map View 50x35 Zoom Use 0% Tactical HUD 0 Map Filters NONE Filters NONE Steam 1 RUN: 7cdf9324-c23d-4d7c-8734-b28934207634